[Event "18th Charleroi Open-A 2019"]
[Site "Charleroi"]
[Date "2019.07.27"]
[Round "1.3"]
[White "Hafner, Christian"]
[Black "Mirzoev, Azer"]
[Result "0-1"]
[ECO "A36"]
[WhiteElo "2071"]
[BlackElo "2474"]
[Annotator "ChessBase"]
[PlyCount "99"]
[EventDate "2019.07.22"]
[EventType "swiss"]
[EventCountry "BEL"]
[SourceTitle "playchess.com"]
[Source "ChessBase"]
[SourceQuality "1"]
[TimeControl "40/5400+30:1800+30"]

1. c4 {[%emt 0:00:00]} Nf6 {[%emt 0:00:00]} 2. g3 {[%emt 0:00:00]} g6 {[%emt 0:00:00]} 3. Bg2 {[%emt 0:00:00]} Bg7 {[%emt 0:00:00]} 4. Nc3 {[%emt 0:00:00]} O-O {[%emt 0:00:00]} 5. e4 {[%emt 0:00:12]} d6 {[%emt 0:00:00]} 6. Nge2 {[%emt 0:00:13]} c5 {[%emt 0:00:07]} 7. O-O {[%emt 0:00:19]} Nc6 {[%emt 0:00:04]} 8. d3 {[%emt 0:00:12]} Rb8 {[%emt 0:09:42]} 9. Rb1 {[%emt 0:03:10]} a6 {[%emt 0:00:19]} 10. a3 {[%emt 0:02:52]} Bg4 {[%emt 0:14:41]} 11. Qc2 {[%emt 0:03:49]} b5 {[%emt 0:06:14]} 12. cxb5 {[%emt 0:00:47]} Nd4 {[%emt 0:01:10]} 13. Nxd4 {[%emt 0:02:41]} cxd4 {[%emt 0:00:03]} 14. Ne2 {[%emt 0:19:02]} Rc8 {[%emt 0:04:10]} 15. Qd1 {[%emt 0:01:29]} axb5 {[%emt 0:09:55]} 16. h3 {[%emt 0:02:24]} Bxe2 {[%emt 0:00:09]} 17. Qxe2 {[%emt 0:00:08]} Nd7 {[%emt 0:06:23]} 18. Bd2 {[%emt 0:07:50]} Qb6 {[%emt 0:09:12]} 19. Rfc1 {[%emt 0:03:18]} Qa6 {[%emt 0:00:11]} 20. Rxc8 {[%emt 0:03:42]} Rxc8 {[%emt 0:00:09]} 21. Qd1 {[%emt 0:11:02]} Nc5 {[%emt 0:17:24]} 22. Bb4 {[%emt 0:00:39]} Bh6 {[%emt 0:00:57]} 23. b3 {[%emt 0:03:12]} e5 {[%emt 0:01:21]} 24. Kh2 {[%emt 0:02:58]} Qb6 {[%emt 0:03:49]} 25. a4 {[%emt 0:11:48]} Na6 {[%emt 0:00:56]} 26. Bd2 {[%emt 0:04:12]} Bxd2 {[%emt 0:04:09]} 27. axb5 {[%emt 0:00:07]} Qxb5 {[%emt 0:00:54]} 28. Qxd2 {[%emt 0:00:11]} Nb4 {[%emt 0:01:29]} 29. Rb2 {[%emt 0:02:32]} Qc5 {[%emt 0:01:19]} 30. Bf1 {[%emt 0:02:46]} Qc3 {[%emt 0:00:42]} 31. Kg2 {[%emt 0:01:09]} Ra8 {[%emt 0:01:42]} 32. Be2 {[%emt 0:00:49]} Kg7 {[%emt 0:01:24]} 33. f4 {[%emt 0:00:14]} Ra3 {[%emt 0:01:25]} 34. Kf2 {[%emt 0:00:45]} Qxd2 {[%emt 0:01:16]} 35. Rxd2 {[%emt 0:00:12]} Rxb3 {[%emt 0:00:02]} 36. Kf3 {[%emt 0:00:52]} f5 {[%emt 0:02:27]} 37. g4 {[%emt 0:01:53]} Kf6 {[%emt 0:00:34]} 38. exf5 {[%emt 0:05:38]} gxf5 {[%emt 0:00:08]} 39. fxe5+ {[%emt 0:01:52]} dxe5 {[%emt 0:00:06]} 40. gxf5 {[%emt 0:00:25]} Kxf5 {[%emt 0:00:04]} 41. Kf2 {[%emt 0:30:39]} Kf4 {[%emt 0:30:20]} 42. h4 {[%emt 0:02:52]} h6 {[%emt 0:00:46]} 43. h5 {[%emt 0:00:15]} Rc3 {[%emt 0:00:38]} 44. Bf1 {[%emt 0:01:46]} Rc2 {[%emt 0:02:11]} 45. Rxc2 {[%emt 0:00:37]} Nxc2 {[%emt 0:00:03]} 46. Be2 {[%emt 0:00:45]} Nb4 {[%emt 0:00:08]} 47. Bf1 {[%emt 0:00:26]} Nd5 {[%emt 0:00:10]} 48. Be2 {[%emt 0:00:31]} Nf6 {[%emt 0:00:06]} 49. Bd1 {[%emt 0:00:15]} Kg5 {[%emt 0:00:09]} 50. Ke1 {[%emt 0:01:30]} 0-1

[Event "18th Charleroi Open-A 2019"]
[Site "Charleroi"]
[Date "2019.07.27"]
[Round "1.5"]
[White "Dugailliez, Guy"]
[Black "Lugovskoy, Maxim"]
[Result "1-0"]
[ECO "A07"]
[WhiteElo "2063"]
[BlackElo "2425"]
[Annotator "NA"]
[PlyCount "109"]
[EventDate "2019.07.22"]
[EventType "swiss"]
[EventCountry "BEL"]
[SourceTitle "playchess.com"]
[Source "ChessBase"]
[SourceQuality "1"]
[TimeControl "40/5400+30:1800+30"]

1. Nf3 {[%emt 0:00:00]} d5 {[%emt 0:00:00]} 2. g3 {[%emt 0:00:00]} Nf6 {[%emt 0:00:00]} 3. Bg2 {[%emt 0:00:00]} Bg4 {[%emt 0:00:14]} 4. O-O {[%emt 0:00:23]} c6 {[%emt 0:02:01]} 5. d3 {[%emt 0:00:22]} Nbd7 {[%emt 0:00:49]} 6. Nbd2 {[%emt 0:00:20]} e5 {[%emt 0:03:30]} 7. h3 {[%emt 0:00:53]} Bh5 {[%emt 0:02:39]} 8. Qe1 {[%emt 0:00:06]} Bc5 {[%emt 0:02:54]} 9. e4 {[%emt 0:01:42]} dxe4 {[%emt 0:03:44]} 10. dxe4 {[%emt 0:01:27]} O-O {[%emt 0:04:16]} 11. Nc4 {[%emt 0:02:32]} Qc7 {[%emt 0:07:46]} 12. b4 Bxf3 {[%emt 0:12:50]} 13. Bxf3 {[%emt 0:03:34]} Bd4 {[%emt 0:01:33]} 14. c3 {[%emt 0:02:07]} Bb6 {[%emt 0:00:06]} 15. a4 {[%emt 0:01:17]} a6 {[%emt 0:08:02]} 16. Nxb6 {[%emt 0:09:48]} Nxb6 {[%emt 0:01:30]} 17. a5 {[%emt 0:13:05]} Nbd7 {[%emt 0:03:21]} 18. Bg5 {[%emt 0:09:51]} Rfd8 {[%emt 0:07:05]} 19. Bd1 {[%emt 0:05:15]} h6 {[%emt 0:05:23]} 20. Bd2 {[%emt 0:03:17]} Nf8 {[%emt 0:12:57]} 21. Be3 {[%emt 0:30:01]} Qd7 {[%emt 0:00:33]} 22. Bb6 {[%emt 0:00:08]} Re8 {[%emt 0:01:26]} 23. Kg2 {[%emt 0:01:23]} Qd3 {[%emt 0:02:15]} 24. f3 {[%emt 0:06:52]} N6d7 {[%emt 0:03:39]} 25. Be2 {[%emt 0:02:23]} Qd6 {[%emt 0:00:29]} 26. Be3 {[%emt 0:01:10]} Qe6 {[%emt 0:02:32]} 27. Qd2 {[%emt 0:01:20]} Rad8 {[%emt 0:01:07]} 28. Rfd1 {[%emt 0:01:42]} Qf6 {[%emt 0:01:41]} 29. Qc2 {[%emt 0:00:21]} Ng6 {[%emt 0:01:25]} 30. h4 {[%emt 0:01:41]} Ndf8 {[%emt 0:01:54]} 31. h5 {[%emt 0:00:28]} Ne7 {[%emt 0:00:12]} 32. Rxd8 {[%emt 0:01:52]} Rxd8 {[%emt 0:00:05]} 33. Rd1 {[%emt 0:00:29]} Nc8 {[%emt 0:00:58]} 34. Rxd8 {[%emt 0:00:36]} Qxd8 {[%emt 0:00:02]} 35. f4 {[%emt 0:00:30]} exf4 {[%emt 0:01:42]} 36. gxf4 {[%emt 0:00:05]} Ne6 {[%emt 0:00:30]} 37. Bg4 {[%emt 0:00:37]} Qh4 {[%emt 0:03:27]} 38. Qd1 {[%emt 0:00:46]} Qf6 {[%emt 0:02:09]} 39. e5 {[%emt 0:00:34]} Nxf4+ {[%emt 0:01:51]} 40. Kf3 {[%emt 0:00:29]} Qxe5 {[%emt 0:00:36]} 41. Bxf4 {[%emt 0:30:06]} Qxc3+ {[%emt 0:30:17]} 42. Kg2 {[%emt 0:00:20]} Qf6 {[%emt 0:00:00]} 43. Qd7 {[%emt 0:00:00]} Ne7 {[%emt 0:00:00]} 44. Bd6 {[%emt 0:00:00]} Qb2+ {[%emt 0:00:00]} 45. Kh3 {[%emt 0:00:00]} Qc3+ {[%emt 0:00:00]} 46. Bg3 {[%emt 0:00:00]} Qxb4 {[%emt 0:00:00]} 47. Qe8+ {[%emt 0:00:00]} Kh7 {[%emt 0:00:00]} 48. Qxf7 {[%emt 0:00:00]} Qe4 {[%emt 0:00:00]} 49. Bf3 {[%emt 0:00:00]} Qe3 {[%emt 0:00:00]} 50. Bf2 {[%emt 0:00:00]} Qe5 {[%emt 0:00:00]} 51. Bd4 {[%emt 0:00:00]} Qf5+ {[%emt 0:01:11]} 52. Qxf5+ {[%emt 0:00:00]} Nxf5 {[%emt 0:00:01]} 53. Be4 {[%emt 0:00:00]} g6 {[%emt 0:00:19]} 54. hxg6+ {[%emt 0:07:08]} Kxg6 {[%emt 0:00:05]} 55. Kg4 {[%emt 0:00:00] Ne7} 1-0

[Event "18th Charleroi Open-A 2019"]
[Site "Charleroi"]
[Date "2019.07.27"]
[Round "1.6"]
[White "Maerevoet, Sim"]
[Black "Uhoda, Philippe"]
[Result "0-1"]
[ECO "C01"]
[WhiteElo "2321"]
[BlackElo "2062"]
[Annotator "NA"]
[PlyCount "72"]
[EventDate "2019.07.22"]
[EventType "swiss"]
[EventCountry "BEL"]
[SourceTitle "playchess.com"]
[Source "ChessBase"]
[SourceQuality "1"]
[TimeControl "40/5400+30:1800+30"]

1. e4 {[%emt 1:30:30]} e6 {[%emt 1:30:30]} 2. d4 {[%emt 0:00:30]} d5 {[%emt 0:00:30]} 3. Bd3 {[%emt 0:00:30]} Nc6 {[%emt 0:00:30]} 4. c3 {[%emt 0:00:30]} e5 {[%emt 0:00:30]} 5. exd5 {[%emt 0:00:30]} Qxd5 {[%emt 0:00:30]} 6. Qe2 {[%emt 0:00:30]} Qxg2 {[%emt 0:00:30]} 7. Be4 {[%emt 0:00:30]} Qg4 {[%emt 0:00:30]} 8. Bf3 {[%emt 0:00:30]} Qf5 {[%emt 0:00:30]} 9. d5 {[%emt 0:00:30]} Nd8 {[%emt 0:00:30]} 10. h3 {[%emt 0:00:30]} Nf6 {[%emt 0:00:30]} 11. Nd2 {[%emt 0:00:30]} Bd6 {[%emt 0:00:30]} 12. Ne4 {[%emt 0:00:30]} O-O {[%emt 0:00:30]} 13. c4 {[%emt 0:00:30]} b6 {[%emt 0:00:30]} 14. Bd2 {[%emt 0:00:30]} Nb7 {[%emt 0:00:30]} 15. h4 {[%emt 0:00:30]} Nc5 {[%emt 0:00:30]} 16. Ng3 {[%emt 0:00:30]} Qc2 {[%emt 0:00:30]} 17. Bc3 {[%emt 0:00:30]} Qxe2+ {[%emt 0:00:30]} 18. N1xe2 {[%emt 0:00:30]} Bg4 {[%emt 0:00:30]} 19. Bg2 {[%emt 0:00:30]} Na4 {[%emt 0:00:30]} 20. Bh3 {[%emt 0:00:30]} Bxh3 {[%emt 0:00:30]} 21. Rxh3 {[%emt 0:00:30]} b5 {[%emt 0:00:30]} 22. b3 {[%emt 0:00:30]} Nxc3 {[%emt 0:00:30]} 23. Nxc3 {[%emt 0:00:30]} bxc4 {[%emt 0:00:30]} 24. bxc4 {[%emt 0:00:30]} Bb4 {[%emt 0:00:30]} 25. Rc1 {[%emt 0:00:30]} c6 {[%emt 0:00:30]} 26. dxc6 {[%emt 0:00:30]} Rac8 {[%emt 0:00:30]} 27. Ke2 {[%emt 0:00:30]} Rxc6 {[%emt 0:00:30]} 28. Nd1 {[%emt 0:00:30]} Nd5 {[%emt 0:00:30]} 29. Kf3 {[%emt 0:00:30]} Nf4 {[%emt 0:00:30]} 30. Rh1 {[%emt 0:00:30]} Nd3 {[%emt 0:00:30]} 31. Rb1 {[%emt 0:00:30]} Rxc4 {[%emt 0:00:30]} 32. Ne3 {[%emt 0:00:30]} Rf4+ {[%emt 0:00:30]} 33. Ke2 {[%emt 0:00:30]} Nxf2 {[%emt 0:00:30]} 34. Rhf1 {[%emt 0:00:30]} Ne4 {[%emt 0:00:30]} 35. Rxf4 {[%emt 0:00:30]} Nxg3+ {[%emt 0:00:30]} 36. Kf3 {[%emt 0:00:30]} exf4 {[%emt 0:00:30]} 0-1

[Event "18th Charleroi Open-A 2019"]
[Site "Charleroi"]
[Date "2019.07.27"]
[Round "1.7"]
[White "Vanden Bussche, Steven"]
[Black "Capone, Nicola"]
[Result "1-0"]
[ECO "A36"]
[WhiteElo "2061"]
[BlackElo "2297"]
[Annotator "RC"]
[PlyCount "92"]
[EventDate "2019.07.22"]
[EventType "swiss"]
[EventCountry "BEL"]
[SourceTitle "playchess.com"]
[Source "ChessBase"]
[SourceQuality "1"]
[TimeControl "40/5400+30:1800+30"]

1. c4 {[%emt 0:00:00]} e6 {[%emt 0:00:00]} 2. e4 {[%emt 0:00:00]} c5 {[%emt 0:00:57]} 3. Nc3 {[%emt 0:00:05]} Nc6 {[%emt 0:00:39]} 4. d3 {[%emt 0:00:41]} d6 {[%emt 0:02:00]} 5. g3 {[%emt 0:00:34]} g6 {[%emt 0:03:39]} 6. Bg2 {[%emt 0:00:36]} Bg7 {[%emt 0:00:17]} 7. Nge2 {[%emt 0:00:10]} Nge7 {[%emt 0:01:05]} 8. Be3 {[%emt 0:00:48]} Nd4 {[%emt 0:11:57]} 9. O-O {[%emt 0:01:40]} O-O {[%emt 0:01:06]} 10. Qd2 {[%emt 0:00:19]} Rb8 {[%emt 0:05:50]} 11. Bh6 {[%emt 0:03:37]} a6 {[%emt 0:00:54]} 12. Bxg7 {[%emt 0:02:03]} Kxg7 {[%emt 0:00:16]} 13. b4 {[%emt 0:02:14]} b5 {[%emt 0:16:38]} 14. cxb5 {[%emt 0:07:48]} axb5 {[%emt 0:00:44]} 15. Rfc1 {[%emt 0:02:03]} Nec6 {[%emt 0:13:27]} 16. Nxd4 {[%emt 0:05:54]} Nxd4 {[%emt 0:00:56]} 17. Ne2 {[%emt 0:05:17]} Qf6 {[%emt 0:06:58]} 18. Rab1 {[%emt 0:09:46]} Nxe2+ {[%emt 0:08:45]} 19. Qxe2 {[%emt 0:00:22]} Qd4 {[%emt 0:03:34]} 20. bxc5 {[%emt 0:07:11]} dxc5 {[%emt 0:00:15]} 21. Qc2 {[%emt 0:00:21]} Ba6 {[%emt 0:09:55]} 22. Qxc5 {[%emt 0:02:58]} Qxd3 {[%emt 0:00:41]} 23. Qe5+ {[%emt 0:10:14]} Kg8 {[%emt 0:00:34]} 24. Rd1 {[%emt 0:00:56]} Qa3 {[%emt 0:01:25]} 25. h4 {[%emt 0:03:14]} b4 {[%emt 0:01:10]} 26. Qf6 {[%emt 0:06:06]} h5 {[%emt 0:03:44]} 27. g4 {[%emt 0:12:23]} Be2 {[%emt 0:01:44]} 28. Re1 {[%emt 0:02:30]} Bxg4 {[%emt 0:02:01]} 29. f3 {[%emt 0:00:25]} Qc3 {[%emt 0:01:00]} 30. Qxc3 {[%emt 0:04:39]} bxc3 {[%emt 0:00:03]} 31. fxg4 {[%emt 0:00:37]} hxg4 {[%emt 0:00:12]} 32. e5 {[%emt 0:01:29]} c2 {[%emt 0:01:42]} 33. Rbc1 {[%emt 0:03:50]} Rb2 {[%emt 0:02:22]} 34. a4 {[%emt 0:00:30]} Rc8 {[%emt 0:00:10]} 35. a5 {[%emt 0:00:29]} Ra2 {[%emt 0:02:13]} 36. a6 {[%emt 0:01:03]} Rc3 {[%emt 0:00:34]} 37. Bb7 {[%emt 0:00:16]} Rg3+ {[%emt 0:00:34]} 38. Kf2 {[%emt 0:05:52]} Rh3 {[%emt 0:00:17]} 39. Kg2 {[%emt 0:01:26]} Rxh4 {[%emt 0:00:35]} 40. Re4 {[%emt 0:01:38]} Kg7 {[%emt 0:00:49]} 41. Rc4 {[%emt 0:30:46]} Rh3 {[%emt 0:08:59]} 42. R1xc2 {[%emt 0:00:00]} Rxc2+ {[%emt 0:00:33]} 43. Rxc2 {[%emt 0:00:00]} Ra3 {[%emt 0:00:04]} 44. Rc7 {[%emt 0:00:00]} Kf8 {[%emt 0:13:21]} 45. Bc8 {[%emt 0:00:00]} Ke8 {[%emt 0:00:19]} 46. a7 {[%emt 0:00:00]} Kd8 {[%emt 0:00:29]} 1-0

[Event "18th Charleroi Open-A 2019"]
[Site "Charleroi"]
[Date "2019.07.27"]
[Round "1.8"]
[White "Klinova, Masha"]
[Black "Oupindrin, Narayanin"]
[Result "0-1"]
[ECO "A89"]
[WhiteElo "2269"]
[BlackElo "2056"]
[Annotator "NA"]
[PlyCount "70"]
[EventDate "2019.07.22"]
[EventType "swiss"]
[EventCountry "BEL"]
[SourceTitle "playchess.com"]
[Source "ChessBase"]
[SourceQuality "1"]
[TimeControl "40/5400+30:1800+30"]

1. d4 {[%emt 0:00:00]} d6 {[%emt 0:00:00]} 2. Nf3 {[%emt 0:00:00]} g6 {[%emt 0:00:00]} 3. g3 {[%emt 0:00:20]} Bg7 {[%emt 0:00:00]} 4. Bg2 {[%emt 0:00:05]} f5 {[%emt 0:00:00]} 5. O-O {[%emt 0:00:22]} Nf6 {[%emt 0:00:00]} 6. b3 {[%emt 0:01:20]} O-O {[%emt 0:00:27]} 7. Bb2 {[%emt 0:00:06]} Ne4 {[%emt 0:00:49]} 8. c4 {[%emt 0:02:14]} Nc6 {[%emt 0:00:39]} 9. Nc3 {[%emt 0:05:18]} Nxc3 {[%emt 0:01:51]} 10. Bxc3 {[%emt 0:00:02]} Qe8 {[%emt 0:00:07]} 11. Qc2 {[%emt 0:14:59]} e5 {[%emt 0:01:09]} 12. dxe5 {[%emt 0:01:50]} dxe5 {[%emt 0:00:09]} 13. Qb2 {[%emt 0:00:16]} Qe7 {[%emt 0:03:12]} 14. Rfd1 {[%emt 0:05:01]} Rf7 {[%emt 0:09:08]} 15. e3 {[%emt 0:15:56]} e4 {[%emt 0:02:11]} 16. Ne1 {[%emt 0:00:28]} h5 {[%emt 0:00:57]} 17. Rac1 {[%emt 0:12:30]} h4 {[%emt 0:00:58]} 18. c5 {[%emt 0:02:57]} a6 {[%emt 0:08:15]} 19. b4 {[%emt 0:04:01]} Be6 {[%emt 0:00:36]} 20. a4 {[%emt 0:06:52]} Bxc3 {[%emt 0:07:56]} 21. Qxc3 {[%emt 0:00:27]} a5 {[%emt 0:12:16]} 22. Nc2 {[%emt 0:11:58]} axb4 {[%emt 0:05:50]} 23. Nxb4 {[%emt 0:00:02]} Rxa4 {[%emt 0:00:12]} 24. Nd5 {[%emt 0:03:18]} Bxd5 {[%emt 0:03:29]} 25. Rxd5 {[%emt 0:00:02]} hxg3 {[%emt 0:01:31]} 26. hxg3 {[%emt 0:00:04]} Qf6 {[%emt 0:00:49]} 27. Qxf6 {[%emt 0:03:52]} Rxf6 {[%emt 0:00:05]} 28. Bf1 {[%emt 0:00:07]} Rb4 {[%emt 0:00:09]} 29. Bc4 {[%emt 0:03:17]} Kf8 {[%emt 0:00:24]} 30. Rd7 {[%emt 0:01:05]} Ne5 {[%emt 0:01:05]} 31. Rxc7 {[%emt 0:02:08]} Nxc4 {[%emt 0:02:22]} 32. Rd1 {[%emt 0:01:22]} Rf7 {[%emt 0:00:09]} 33. Rd8+ {[%emt 0:00:34]} Kg7 {[%emt 0:00:08]} 34. Rdd7 {[%emt 0:00:14]} Rxd7 {[%emt 0:00:08]} 35. Rxd7+ {[%emt 0:00:04]} Kf6 {[%emt 0:00:07]} 0-1

[Event "18th Charleroi Open-A 2019"]
[Site "Charleroi"]
[Date "2019.07.27"]
[Round "1.9"]
[White "Van Dijck, Bjarne"]
[Black "Sclacmender, Julien"]
[Result "1-0"]
[ECO "C41"]
[WhiteElo "2053"]
[BlackElo "2269"]
[Annotator "NA"]
[PlyCount "83"]
[EventDate "2019.07.22"]
[EventType "swiss"]
[EventCountry "BEL"]
[SourceTitle "playchess.com"]
[Source "ChessBase"]
[SourceQuality "1"]
[TimeControl "40/5400+30:1800+30"]

1. e4 {[%emt 0:00:00]} d6 {[%emt 0:00:00]} 2. d4 {[%emt 0:00:00]} Nf6 {[%emt 0:00:00]} 3. Nc3 {[%emt 0:00:00]} e5 {[%emt 0:00:00]} 4. Nf3 {[%emt 0:00:01]} Nbd7 {[%emt 0:00:00]} 5. Bc4 {[%emt 0:00:13]} Be7 {[%emt 0:00:00]} 6. O-O {[%emt 0:00:11]} O-O {[%emt 0:00:00]} 7. h3 {[%emt 0:00:19]} c6 {[%emt 0:00:05]} 8. a4 {[%emt 0:00:03]} a5 {[%emt 0:00:09]} 9. Qe2 {[%emt 0:01:07]} exd4 {[%emt 0:05:13]} 10. Nxd4 {[%emt 0:00:20]} Nc5 {[%emt 0:00:12]} 11. Rd1 {[%emt 0:04:44]} Qc7 {[%emt 0:07:45]} 12. Bf4 {[%emt 0:00:47]} Be6 {[%emt 0:02:49]} 13. Nxe6 {[%emt 0:01:25]} fxe6 {[%emt 0:01:15]} 14. Bg3 {[%emt 0:03:18]} Kh8 {[%emt 0:09:12]} 15. e5 {[%emt 0:13:37]} Nd5 {[%emt 0:01:46]} 16. Ne4 {[%emt 0:10:49]} dxe5 {[%emt 0:06:32]} 17. Rd2 {[%emt 0:00:49]} Nf4 {[%emt 0:04:22]} 18. Qe3 {[%emt 0:01:13]} b6 {[%emt 0:03:01]} 19. Nxc5 {[%emt 0:04:22]} Bxc5 {[%emt 0:02:01]} 20. Qe4 {[%emt 0:00:05]} Rad8 {[%emt 0:03:29]} 21. Rad1 {[%emt 0:01:28]} Rxd2 {[%emt 0:02:12]} 22. Rxd2 {[%emt 0:00:05]} Bd6 {[%emt 0:06:49]} 23. c3 {[%emt 0:02:45]} g6 {[%emt 0:06:24]} 24. Bxe6 {[%emt 0:06:31]} Re8 {[%emt 0:12:09]} 25. Ba2 {[%emt 0:01:45]} Nh5 {[%emt 0:04:23]} 26. Bh2 {[%emt 0:01:47]} Nf6 {[%emt 0:03:12]} 27. Qd3 {[%emt 0:01:16]} Bc5 {[%emt 0:00:24]} 28. Qc4 {[%emt 0:02:03]} Qe7 {[%emt 0:03:22]} 29. Re2 {[%emt 0:02:10]} e4 {[%emt 0:03:20]} 30. b4 {[%emt 0:00:14]} axb4 {[%emt 0:02:05]} 31. cxb4 {[%emt 0:00:04]} Rd8 {[%emt 0:01:19]} 32. Bg3 {[%emt 0:02:19]} Rd4 {[%emt 0:01:39]} 33. Qc3 {[%emt 0:01:51]} Rd3 {[%emt 0:03:28]} 34. Qxd3 {[%emt 0:07:43]} exd3 {[%emt 0:00:05]} 35. Rxe7 {[%emt 0:00:03]} Bxe7 {[%emt 0:00:07]} 36. Be5 {[%emt 0:00:16]} h5 {[%emt 0:03:20]} 37. a5 {[%emt 0:00:43]} bxa5 {[%emt 0:01:05]} 38. bxa5 {[%emt 0:00:04]} Kh7 {[%emt 0:00:04]} 39. a6 {[%emt 0:01:19]} d2 {[%emt 0:01:02]} 40. Bb3 {[%emt 0:00:10]} Nd7 {[%emt 0:00:24]} 41. a7 {[%emt 0:30:59]} Nb6 {[%emt 0:32:46]} 42. Kf1 {[%emt 0:32:02]} 1-0

[Event "18th Charleroi Open-A 2019"]
[Site "Charleroi"]
[Date "2019.07.27"]
[Round "1.12"]
[White "Faybish, Nimrod"]
[Black "Zamparo, Sergio"]
[Result "0-1"]
[ECO "A14"]
[WhiteElo "2220"]
[BlackElo "2031"]
[Annotator "NA"]
[PlyCount "60"]
[EventDate "2019.07.22"]
[EventType "swiss"]
[EventCountry "BEL"]
[SourceTitle "playchess.com"]
[Source "ChessBase"]
[SourceQuality "1"]
[TimeControl "40/5400+30:1800+30"]

1. c4 {[%emt 0:00:00]} e6 {[%emt 0:00:00]} 2. g3 {[%emt 0:00:04]} d5 {[%emt 0:00:00]} 3. Bg2 {[%emt 0:00:12]} Nf6 {[%emt 0:00:00]} 4. Nf3 {[%emt 0:00:22]} Be7 {[%emt 0:00:15]} 5. b3 {[%emt 0:01:04]} O-O {[%emt 0:00:08]} 6. O-O {[%emt 0:00:23]} a5 {[%emt 0:01:39]} 7. a3 {[%emt 0:04:00]} d4 {[%emt 0:02:18]} 8. Bb2 {[%emt 0:12:04]} Nc6 {[%emt 0:06:12]} 9. e3 {[%emt 0:18:28]} e5 {[%emt 0:00:16]} 10. exd4 {[%emt 0:00:34]} exd4 {[%emt 0:00:04]} 11. Re1 {[%emt 0:00:59]} Bg4 {[%emt 0:01:15]} 12. d3 {[%emt 0:01:55]} Qd7 {[%emt 0:01:50]} 13. Nbd2 {[%emt 0:01:26]} Rfe8 {[%emt 0:00:11]} 14. Qc2 {[%emt 0:05:49]} Bc5 {[%emt 0:05:47]} 15. Ng5 {[%emt 0:04:42]} h6 {[%emt 0:04:12]} 16. Nge4 {[%emt 0:00:21]} Nxe4 {[%emt 0:00:07]} 17. Nxe4 {[%emt 0:00:13]} Bf8 {[%emt 0:00:14]} 18. c5 {[%emt 0:10:12]} Be6 {[%emt 0:05:07]} 19. Rab1 {[%emt 0:13:50]} Bd5 {[%emt 0:01:32]} 20. Ba1 {[%emt 0:07:58]} f5 {[%emt 0:01:56]} 21. Bh3 {[%emt 0:01:16]} Ne5 {[%emt 0:14:55]} 22. Nd2 {[%emt 0:00:27]} Bc6 {[%emt 0:00:30]} 23. b4 {[%emt 0:03:57]} axb4 {[%emt 0:04:02]} 24. axb4 {[%emt 0:00:12]} Kh8 {[%emt 0:21:09]} 25. b5 {[%emt 0:03:55]} Bxb5 {[%emt 0:01:45]} 26. Bxf5 {[%emt 0:00:37]} Qxf5 {[%emt 0:00:23]} 27. Rxb5 {[%emt 0:00:26]} Nxd3 {[%emt 0:00:57]} 28. Rxe8 {[%emt 0:02:58]} Qxf2+ {[%emt 0:00:24]} 29. Kh1 {[%emt 0:00:06]} Rc8 {[%emt 0:27:22]} 30. Rd8 Rxd8 {[%emt 0:00:00]} 0-1

[Event "18th Charleroi Open-A 2019"]
[Site "Charleroi"]
[Date "2019.07.27"]
[Round "1.13"]
[White "Miulescu, Gabriel"]
[Black "Van Mechelen, Jan"]
[Result "1-0"]
[ECO "E70"]
[WhiteElo "2020"]
[BlackElo "2218"]
[Annotator "NA"]
[PlyCount "109"]
[EventDate "2019.07.22"]
[EventType "swiss"]
[EventCountry "BEL"]
[SourceTitle "playchess.com"]
[Source "ChessBase"]
[SourceQuality "1"]
[TimeControl "40/5400+30:1800+30"]

1. d4 {[%emt 0:00:00]} Nf6 {[%emt 0:00:07]} 2. c4 {[%emt 0:00:00]} g6 {[%emt 0:00:44]} 3. Nc3 {[%emt 0:00:00]} Bg7 {[%emt 0:00:06]} 4. e4 {[%emt 0:00:02]} d6 {[%emt 0:00:05]} 5. Bd3 {[%emt 0:00:11]} Nc6 {[%emt 0:04:13]} 6. Nge2 {[%emt 0:00:44]} Nd7 {[%emt 0:02:08]} 7. Bc2 {[%emt 0:01:25]} e5 {[%emt 0:01:44]} 8. d5 {[%emt 0:00:22]} Ne7 {[%emt 0:03:06]} 9. O-O {[%emt 0:00:56]} a5 {[%emt 0:00:19]} 10. Rb1 {[%emt 0:03:05]} O-O {[%emt 0:02:24]} 11. Bg5 {[%emt 0:10:48]} h6 {[%emt 0:00:49]} 12. Be3 {[%emt 0:00:25]} f5 {[%emt 0:02:05]} 13. exf5 {[%emt 0:00:27]} Nxf5 {[%emt 0:00:38]} 14. Ng3 {[%emt 0:11:46]} Nf6 {[%emt 0:03:38]} 15. Nxf5 {[%emt 0:14:59]} Bxf5 {[%emt 0:02:53]} 16. f3 {[%emt 0:02:40]} h5 {[%emt 0:06:22]} 17. Qd2 {[%emt 0:05:06]} b6 {[%emt 0:01:50]} 18. Bg5 {[%emt 0:03:59]} Rf7 {[%emt 0:03:00]} 19. Rbe1 {[%emt 0:01:36]} Qf8 {[%emt 0:06:23]} 20. h3 {[%emt 0:06:01]} Nh7 {[%emt 0:08:06]} 21. Be3 {[%emt 0:00:15]} h4 {[%emt 0:03:51]} 22. Ne4 {[%emt 0:02:27]} Qe7 {[%emt 0:03:46]} 23. a3 {[%emt 0:01:05]} Bf6 {[%emt 0:04:09]} 24. b4 {[%emt 0:01:51]} axb4 {[%emt 0:08:09]} 25. axb4 {[%emt 0:00:11]} Kh8 {[%emt 0:00:16]} 26. Ra1 {[%emt 0:00:52]} Rff8 {[%emt 0:02:29]} 27. c5 {[%emt 0:02:41]} bxc5 {[%emt 0:00:10]} 28. bxc5 {[%emt 0:00:06]} Rg8 {[%emt 0:03:08]} 29. Rxa8 {[%emt 0:05:08]} Rxa8 {[%emt 0:00:12]} 30. Rb1 {[%emt 0:00:08]} Bxe4 {[%emt 0:07:16]} 31. Bxe4 {[%emt 0:00:14]} Bg5 {[%emt 0:04:17]} 32. Bxg6 {[%emt 0:05:06]} Rg8 {[%emt 0:05:57]} 33. cxd6 {[%emt 0:03:14]} cxd6 {[%emt 0:01:33]} 34. Bxh7 {[%emt 0:00:27]} Qxh7 {[%emt 0:01:09]} 35. Rb4 {[%emt 0:00:18]} Bd8 {[%emt 0:05:19]} 36. Rg4 {[%emt 0:01:05]} Rxg4 {[%emt 0:00:37]} 37. hxg4 {[%emt 0:00:20]} h3 {[%emt 0:00:49]} 38. gxh3 {[%emt 0:00:41]} Qxh3 {[%emt 0:00:12]} 39. Qh2 {[%emt 0:00:46]} Qxh2+ {[%emt 0:00:06]} 40. Kxh2 {[%emt 0:00:04]} Kg7 {[%emt 0:00:16]} 41. Kg3 {[%emt 0:30:18]} Kg6 {[%emt 0:30:29]} 42. Kf2 {[%emt 0:00:23]} Be7 {[%emt 0:00:00]} 43. Ke2 {[%emt 0:00:00]} Bf8 {[%emt 0:00:00]} 44. Kd3 {[%emt 0:00:00]} Kf7 {[%emt 0:00:00]} 45. Kc4 {[%emt 0:00:00]} Ke8 {[%emt 0:00:00]} 46. Kb5 {[%emt 0:00:00]} Kd7 {[%emt 0:00:00]} 47. Bg5 {[%emt 0:00:00]} Bg7 {[%emt 0:00:00]} 48. Kb6 {[%emt 0:00:00]} Bh8 {[%emt 0:00:00]} 49. Bh6 {[%emt 0:00:00]} Bf6 {[%emt 0:00:00]} 50. g5 {[%emt 0:00:00]} Bd8+ {[%emt 0:00:00]} 51. Kb7 {[%emt 0:00:00]} Ba5 {[%emt 0:00:00]} 52. Bf8 {[%emt 0:00:00]} Bb4 {[%emt 0:00:00]} 53. g6 {[%emt 0:00:00]} Ke8 {[%emt 0:00:00]} 54. g7 {[%emt 0:00:00]} Kf7 {[%emt 0:00:00]} 55. Kc6 {[%emt 0:00:00]} 1-0